bitfinex/quotes_ETHUSD_20230110
["timestamp","ask_amount","ask_price","bid_price","bid_amount"]
[1673386648135,1.33,1342.1,1341.9,0.81344673]
[1673386650266,1.33,1342.1,1341.9,0.04957177]
[1673386650267,16.23201,1342.1,1341.9,0.04957177]
[1673386650864,8.781,1342.1,1341.9,0.04957177]
[1673386653910,25.13962784,1342.2,1342.0,7.45156]
[1673386653911,9.6419,1342.2,1342.0,7.45156]
[1673386654120,1.332,1342.2,1342.0,0.09382459]
[1673386654377,1.332,1342.2,1341.9,7.59523636]
[1673386654600,1.332,1342.2,1341.9,11.71239132]
[1673386654750,24.37571901,1342.3,1341.9,19.16451132]
[1673386654965,28.10737965,1342.3,1341.9,26.61663132]
[1673386655728,27.35526064,1342.3,1341.9,26.61663132]
[1673386655949,32.6973077,1342.3,1341.9,26.61663132]
[1673386656328,32.6973077,1342.3,1341.9,19.16451132]
[1673386656532,47.5971477,1342.3,1341.9,19.16451132]
[1673386657026,47.5971477,1342.3,1341.9,11.71239132]
[1673386657197,47.5971477,1342.3,1341.9,4.26055132]
[1673386657408,55.0490677,1342.3,1341.9,4.16672673]
[1673386657664,55.0470677,1342.3,1341.9,4.16672673]
[1673386662881,0.11900001,1342.1,1341.9,4.16672673]
[1673386663077,0.068,1342.0,1341.9,4.16672673]
[1673386664488,0.068,1342.0,1341.9,6.0157761]
[1673386664653,0.068,1342.0,1341.9,6.10960069]
[1673386669066,0.068,1342.0,1341.9,1.99244573]
[1673386669276,0.068,1342.0,1341.9,1.89862114]
[1673386671587,0.03,1342.0,1341.9,1.89862114]
[1673386671800,0.944,1342.0,1341.9,1.89862114]
[1673386672453,0.944,1342.0,1341.9,3.01507066]
[1673386672663,0.944,1342.0,1341.9,1.89862114]
[1673386672866,0.944,1342.0,1341.9,3.01507066]
[1673386673216,0.03,1342.0,1341.9,13.24084005]
[1673386673433,0.03,1342.0,1341.9,13.33466464]
[1673386673808,0.03,1342.0,1341.9,12.21821512]
[1673386674222,0.03,1342.0,1341.9,19.67033512]
[1673386674428,0.03,1342.0,1341.9,20.78678464]
[1673386674656,0.03,1342.0,1341.9,13.33466464]
[1673386675514,0.03,1342.0,1341.9,18.41652776]
[1673386675760,0.5591,1342.2,1341.9,33.33824216]
[1673386676046,7.7326,1342.3,1342.0,2.96493749]
[1673386676266,7.6666,1342.3,1342.1,22.353]
[1673386676428,7.6666,1342.3,1342.1,22.44682459]
[1673386676985,0.002,1342.3,1342.1,22.44382459]
[1673386677177,3.559,1342.4,1342.1,22.44682459]
[1673386677374,7.35666064,1342.4,1342.1,22.44682459]
[1673386678998,7.35666064,1342.4,1342.1,23.56271271]
[1673386679316,7.35666064,1342.4,1342.1,22.44682459]
[1673386679685,7.35666064,1342.4,1342.1,25.22047398]
[1673386680330,7.35666064,1342.4,1342.2,1.84886799]
[1673386680544,7.35666064,1342.4,1342.2,7.45028]
[1673386680756,7.35666064,1342.4,1342.2,7.54410459]
[1673386683826,3.559,1342.4,1342.2,10.06607999]
[1673386684009,0.559,1342.4,1342.2,24.96697999]
[1673386684217,8.1893,1342.5,1342.2,28.78949621]
[1673386684478,8.1233,1342.5,1342.2,28.78949621]
[1673386684649,0.5589,1342.5,1342.4,7.44934]
[1673386684863,0.5589,1342.5,1342.4,14.99250459]
[1673386685057,3.34967542,1342.6,1342.4,22.44184459]
[1673386685268,0.5589,1342.6,1342.4,22.44184459]
[1673386685736,2.79077542,1342.6,1342.4,22.44184459]
[1673386685955,20.41567542,1342.7,1342.5,17.14106446]
[1673386686108,20.41567542,1342.7,1342.5,22.43948459]
[1673386686109,20.34967542,1342.7,1342.5,22.43948459]
[1673386687428,20.34967542,1342.7,1342.5,14.99070459]
[1673386688576,17.5589,1342.7,1342.5,14.99070459]
[1673386688952,17.5589,1342.7,1342.5,7.54209459]
[1673386690364,17.5589,1342.7,1342.5,7.54259459]
[1673386690575,20.36228556,1342.7,1342.5,7.54259459]
[1673386691200,20.36228556,1342.7,1342.5,0.09382459]
[1673386691375,20.36228556,1342.7,1342.5,7.44873]
[1673386691590,20.36228556,1342.7,1342.5,7.54255459]
[1673386692051,17.5589,1342.7,1342.5,14.98911795]
[1673386693148,17.0,1342.7,1342.5,22.43789795]
[1673386694789,14.0,1342.7,1342.5,22.43789795]
[1673386695156,0.23702019,1342.8,1342.5,23.76489795]
[1673386695372,0.17102019,1342.8,1342.6,7.65251622]
[1673386695700,0.17102019,1342.8,1342.7,30.55597162]
[1673386696048,0.17102019,1342.8,1342.7,34.47231243]
[1673386696637,1e-08,1342.8,1342.7,34.47231243]
[1673386697049,1e-08,1342.8,1342.7,38.26997307]
[1673386697260,0.16023752,1342.9,1342.7,42.7748742]
[1673386697261,7.53e-06,1342.9,1342.7,42.7748742]
[1673386697519,0.90097494,1343.0,1342.8,34.23902428]
[1673386697835,0.90097494,1343.0,1342.8,30.51033265]
[1673386698769,0.90097494,1343.0,1342.8,31.25693265]
[1673386698976,0.90097494,1343.0,1342.8,13.89403201]
[1673386699167,0.90097494,1343.0,1342.8,15.73466459]
[1673386699706,0.90097494,1343.0,1342.8,23.18178459]
[1673386700988,0.90097494,1343.0,1342.8,15.73466459]
[1673386701936,0.90097494,1343.0,1342.8,7.54094459]
[1673386704668,0.90097494,1343.0,1342.8,0.09382459]
[1673386704878,9.36266749,1342.9,1342.7,8.17582459]
[1673386705143,9.36266749,1342.9,1342.7,0.09382459]
[1673386705144,1.91609749,1342.9,1342.7,0.09382459]
[1673386705309,2.5,1342.8,1342.6,8.19474]
[1673386705527,0.09009749,1342.9,1342.6,15.73652459]
[1673386705895,2.59009749,1342.9,1342.6,23.18453459]
[1673386706052,0.09009749,1342.9,1342.6,23.18453459]
[1673386706476,0.09009749,1342.9,1342.6,8.28838459]
[1673386706477,2.59009749,1342.9,1342.6,8.28838459]
[1673386706876,2.59009749,1342.9,1342.6,15.73661459]
[1673386708033,2.59009749,1342.9,1342.6,8.28838459]
[1673386709237,2.59009749,1342.9,1342.6,15.73661459]
[1673386709424,0.09009749,1342.9,1342.6,15.73661459]
[1673386709675,0.09009749,1342.9,1342.6,23.18484459]
[1673386709828,2.59009749,1342.9,1342.6,15.73661459]
[1673386710035,2.32494278,1343.0,1342.6,15.73661459]
[1673386710251,0.90097494,1343.0,1342.6,27.00579232]
[1673386710555,0.90097494,1343.0,1342.6,34.67239232]
[1673386710801,0.90097494,1343.0,1342.6,36.00139232]
[1673386711203,2.90097494,1343.0,1342.6,32.18044459]
[1673386711398,2.90097494,1343.0,1342.6,37.25623605]
[1673386711929,0.90097494,1343.0,1342.6,37.25623605]
[1673386712269,3.40097494,1343.0,1342.6,37.25623605]
[1673386713097,0.90097494,1343.0,1342.6,37.25623605]
[1673386713537,3.40097494,1343.0,1342.6,37.25623605]
[1673386713918,0.90097494,1343.0,1342.6,37.25623605]
[1673386714598,3.40097494,1343.0,1342.6,37.25623605]
[1673386714815,3.40297494,1343.0,1342.6,37.25323605]
[1673386714976,3.40097494,1343.0,1342.6,37.25623605]
[1673386716447,0.90097494,1343.0,1342.6,37.25623605]
[1673386716657,3.24467477,1343.0,1342.6,37.25623605]
[1673386716881,5.74467477,1343.0,1342.6,37.25623605]
[1673386717126,3.24467477,1343.0,1342.6,37.25623605]
[1673386718271,0.90097494,1343.0,1342.6,37.25623605]
[1673386719389,0.90097494,1343.0,1342.7,1.329]
[1673386719596,0.90097494,1343.0,1342.8,29.78538625]
[1673386719838,7.97732334,1343.1,1342.8,29.87921084]
[1673386720085,7.91132334,1343.1,1342.8,29.87921084]
[1673386720295,7.91132334,1343.1,1342.8,32.91467807]
[1673386720936,7.91132334,1343.1,1342.8,34.24367807]
[1673386724158,0.19392334,1343.1,1342.9,7.60466883]
[1673386724405,0.19592334,1343.1,1343.0,23.66703]
[1673386724610,0.19592334,1343.1,1343.0,23.76085459]
[1673386724611,0.19392334,1343.1,1343.0,23.76085459]
[1673386724787,0.19392334,1343.1,1343.0,19.19379421]
[1673386725432,0.19392334,1343.1,1343.0,26.63980421]
[1673386725996,0.19392334,1343.1,1343.0,19.19379421]
[1673386726359,0.19392334,1343.1,1343.0,26.63980421]
[1673386727819,0.19392334,1343.1,1343.0,14.98584459]
[1673386728029,0.19392334,1343.1,1343.0,7.53983459]
[1673386728244,0.19392334,1343.1,1343.0,22.43185459]
[1673386728467,0.19392334,1343.1,1343.0,14.98584459]
[1673386729605,0.19017093,1343.1,1343.0,14.98584459]
[1673386730162,0.19017093,1343.1,1343.0,24.67504605]
[1673386731219,0.19017093,1343.1,1343.0,26.00404605]
[1673386733245,0.19017093,1343.1,1343.0,18.55803605]
[1673386733467,0.19017093,1343.1,1343.0,9.78302605]
[1673386734774,0.19017093,1343.1,1343.0,7.53983459]
[1673386734985,0.19017093,1343.1,1343.0,0.09382459]
[1673386735245,1.10417093,1343.1,1342.9,32.82318459]
[1673386736715,0.19017093,1343.1,1342.9,32.82318459]
[1673386738616,0.19017093,1343.1,1342.9,34.15218459]
[1673386738782,0.19017093,1343.1,1343.0,25.75324846]
[1673386738994,0.19017093,1343.1,1343.0,25.84707305]
[1673386743651,0.19017093,1343.1,1343.0,30.97373369]
[1673386744088,1e-08,1343.1,1343.0,30.97373369]
[1673386744280,1e-08,1343.1,1343.0,25.84707305]
[1673386744611,1e-08,1343.1,1343.0,18.40106305]
[1673386744777,1e-08,1343.1,1343.0,25.84707305]
[1673386746090,1e-08,1343.1,1343.0,10.95505305]
[1673386746394,1e-08,1343.1,1343.0,18.40106305]
[1673386746998,1e-08,1343.1,1343.0,25.84707305]
[1673386749291,1e-08,1343.1,1343.0,22.43185459]
[1673386753406,1e-08,1343.1,1343.0,14.98584459]
[1673386753840,0.11395482,1343.2,1343.0,22.43185459]
[1673386754228,0.11395482,1343.2,1343.0,14.98584459]
[1673386756235,0.75272886,1343.2,1343.0,14.98584459]
[1673386757499,0.75272886,1343.2,1343.0,22.43185459]
[1673386757747,0.11395482,1343.2,1343.0,22.43185459]
[1673386758333,0.11395482,1343.2,1343.1,3.0]
[1673386758546,0.11395482,1343.2,1343.1,13.12204987]
[1673386758779,0.11395482,1343.2,1343.1,25.60679446]
[1673386758971,0.11395482,1343.2,1343.1,7.53928459]
[1673386759375,0.11395482,1343.2,1343.1,22.43020459]
[1673386759796,1e-08,1343.2,1343.1,22.43020459]
[1673386760649,1e-08,1343.2,1343.1,14.98474459]
[1673386761414,1e-08,1343.2,1343.1,0.09382459]
[1673386761633,0.00200001,1343.2,1343.1,8.35746]
[1673386761796,0.00200001,1343.2,1343.1,15.89674459]
[1673386761797,1e-08,1343.2,1343.1,15.89674459]
[1673386762007,1e-08,1343.2,1343.1,8.45128459]
[1673386762699,1e-08,1343.2,1343.1,15.89674459]
[1673386763303,1e-08,1343.2,1343.1,8.45128459]
[1673386763508,1e-08,1343.2,1343.1,1.00582459]
[1673386763723,1e-08,1343.2,1343.1,23.24838]
[1673386763952,1e-08,1343.2,1343.1,15.89674459]
[1673386764492,1e-08,1343.2,1343.1,8.45128459]
[1673386764650,1e-08,1343.2,1343.1,23.34220459]
[1673386765286,1e-08,1343.2,1343.1,25.18980791]
[1673386765497,1e-08,1343.2,1343.1,25.18979543]
[1673386766162,1e-08,1343.2,1343.1,23.34220459]
[1673386767276,1e-08,1343.2,1343.1,8.45128459]
[1673386768015,1e-08,1343.2,1343.1,23.34220459]
[1673386768273,1e-08,1343.2,1343.1,15.89674459]
[1673386768430,1e-08,1343.2,1343.1,26.91640852]
[1673386768648,0.19392334,1343.3,1343.2,0.91399999]
[1673386768865,0.19392334,1343.3,1343.2,32.66875487]
[1673386769164,0.19392334,1343.3,1343.2,34.41784442]
[1673386769639,0.19392334,1343.3,1343.2,30.61114053]
[1673386769849,0.19392334,1343.3,1343.2,34.53090815]
[1673386770295,0.19392334,1343.3,1343.2,42.13606028]
[1673386770468,0.19392334,1343.3,1343.2,46.2519484]
[1673386770996,0.19392334,1343.3,1343.2,45.13606028]
[1673386771194,0.19392334,1343.3,1343.2,46.2519484]
[1673386772796,0.19392334,1343.3,1343.2,45.13606028]
[1673386773730,0.19392334,1343.3,1343.2,47.5789484]
[1673386775073,0.19392334,1343.3,1343.2,46.46306028]
[1673386775436,0.19392334,1343.3,1343.2,47.8089484]
[1673386775815,0.19392334,1343.3,1343.2,46.46306028]
[1673386778568,0.19836023,1343.4,1343.2,48.00587844]
[1673386778765,0.18473716,1343.5,1343.4,29.77516]
[1673386778972,0.18473716,1343.5,1343.4,48.57533826]
[1673386779221,0.18473716,1343.5,1343.4,47.47602265]
[1673386779599,0.18473716,1343.5,1343.4,51.57530285]
[1673386779808,0.18473716,1343.5,1343.4,52.32190285]
[1673386780014,7.16e-06,1343.5,1343.4,56.35687631]
[1673386780474,7.16e-06,1343.5,1343.4,32.86276805]
[1673386780756,7.16e-06,1343.5,1343.4,3.84042459]
[1673386781122,7.16e-06,1343.5,1343.4,0.7466]
[1673386781458,7.16e-06,1343.5,1343.3,18.9972946]
[1673386782755,7.16e-06,1343.5,1343.3,33.8859846]
[1673386782981,7.16e-06,1343.5,1343.3,41.3303346]
[1673386783186,7.16e-06,1343.5,1343.3,46.20801306]
[1673386784645,7.16e-06,1343.5,1343.3,55.14253432]
[1673386785689,7.16e-06,1343.5,1343.3,55.14292319]
[1673386786121,7.16e-06,1343.5,1343.4,2.5]
[1673386786544,7.16e-06,1343.5,1343.4,24.83137]
[1673386786755,7.16e-06,1343.5,1343.4,28.53772444]
[1673386786963,7.16e-06,1343.5,1343.2,0.74859999]
[1673386786964,19.1266678,1343.5,1343.2,0.74859999]
[1673386787216,21.44435,1343.3,1342.8,0.06]
[1673386787386,21.44435,1343.3,1342.6,3.90757331]
[1673386787387,14.0,1342.9,1342.6,0.066]
[1673386787593,14.0,1342.9,1342.4,18.78832]
[1673386787594,14.0,1342.7,1342.4,0.066]
[1673386787807,1.9589,1342.6,1342.3,0.04076519]
[1673386788035,1.329,1342.4,1342.3,0.04076519]
[1673386788224,1.888,1342.4,1342.3,7.49054519]
[1673386788455,0.559,1342.4,1342.3,15.00632519]
[1673386788628,2.18408685,1342.6,1342.5,16.78555999]
[1673386788629,0.6249,1342.6,1342.5,16.78555999]
[1673386788843,0.5588,1342.8,1342.5,16.85155999]
[1673386789511,0.5588,1342.8,1342.6,2.5]
[1673386789725,0.5588,1342.8,1342.7,14.89536]
[1673386789931,0.5588,1342.9,1342.7,14.96136]
[1673386790122,2.15318,1342.9,1342.7,14.96136]
[1673386790578,0.5588,1342.9,1342.7,14.96136]
[1673386790962,0.5587,1343.0,1342.8,2.5]
[1673386791173,0.5587,1343.0,1342.8,9.94703]
[1673386791424,0.5587,1343.0,1342.8,10.01303]
[1673386792211,0.5587,1343.0,1342.8,7.51303]
[1673386792548,2.45407,1343.0,1342.8,7.51303]
[1673386793260,2.45407,1343.0,1342.8,0.066]
[1673386793470,11.2211,1343.0,1342.7,0.066]
[1673386793720,1.329,1342.9,1342.5,9.33676999]
[1673386793891,0.6917,1342.8,1342.5,16.85154999]
[1673386794101,0.6917,1342.8,1342.6,2.5]
[1673386794438,0.6917,1342.8,1342.6,9.94792]
[1673386794641,0.1329,1342.8,1342.6,14.96215]
[1673386795487,0.1349,1342.8,1342.6,14.96015]
[1673386795717,0.1349,1342.8,1342.6,14.96215]
[1673386795718,0.1329,1342.8,1342.6,14.96215]
[1673386796094,5.25156064,1342.8,1342.6,7.51392]
[1673386796421,1.85415606,1342.7,1342.6,0.066]
[1673386796670,1.85415606,1342.7,1342.5,16.85084999]
[1673386797567,8.28855171,1342.6,1342.5,9.40237999]
[1673386797777,8.35455171,1342.6,1342.5,9.40237999]
[1673386798034,9.37542249,1342.6,1342.5,9.40237999]
[1673386798773,9.37542249,1342.6,1342.5,1.95399999]
[1673386798983,9.37542249,1342.6,1342.5,1.88799999]
[1673386799692,8.26640097,1342.6,1342.5,1.88799999]
[1673386800585,8.26640097,1342.6,1342.5,9.33677999]
[1673386800760,8.26640097,1342.6,1342.5,9.40277999]
[1673386803011,8.26640097,1342.6,1342.5,9.40077999]
[1673386803173,7.24553019,1342.6,1342.5,16.85155999]
[1673386803389,7.24553019,1342.6,1342.5,24.30033999]
[1673386804958,7.24553019,1342.6,1342.5,24.29833999]
[1673386805166,7.24553019,1342.6,1342.5,24.30033999]
[1673386806274,7.24553019,1342.6,1342.5,27.47527599]
[1673386806446,11.41253019,1342.6,1342.5,27.47527599]
[1673386808576,2.26156518,1342.6,1342.5,24.30033999]
[1673386808795,2.32156518,1342.6,1342.5,24.30033999]
[1673386812306,2.32356518,1342.6,1342.5,24.29833999]
[1673386812566,2.32156518,1342.6,1342.5,24.30033999]
[1673386812778,2.32156518,1342.6,1342.5,27.47527599]
[1673386813374,2.32156518,1342.6,1342.5,25.587276]
[1673386817635,0.066,1342.8,1342.6,0.63536098]
[1673386817786,1.8878,1342.9,1342.7,22.34304]
[1673386818138,0.146,1342.8,1342.7,22.40904]
[1673386820329,0.146,1342.8,1342.7,0.066]
[1673386820503,0.146,1342.8,1342.6,15.59711098]
[1673386820923,0.146,1342.8,1342.6,8.14916098]
[1673386821192,0.46648,1342.8,1342.6,15.59739098]
[1673386821505,0.32048,1342.8,1342.6,15.59739098]
[1673386822291,0.32048,1342.8,1342.6,23.04562098]
[1673386823380,0.5588,1342.9,1342.6,23.04562098]
[1673386824849,8.50026784,1343.0,1342.6,23.04562098]
[1673386825022,8.45026784,1343.0,1342.6,25.81771229]
[1673386826290,8.45026784,1343.0,1342.6,26.93360041]
[1673386826508,8.45026784,1343.0,1342.6,25.81771229]
[1673386826751,8.45026784,1343.0,1342.7,8.04567047]
[1673386826955,8.45026784,1343.0,1342.9,22.33971]
[1673386827184,3.61166784,1343.0,1342.9,22.40571]
[1673386827401,3.59566784,1343.0,1342.9,22.40571]
[1673386827709,3.59566784,1343.0,1342.9,7.51257]
[1673386828737,3.59566784,1343.0,1342.9,0.066]
[1673386828955,3.59566784,1343.0,1342.8,22.40673]
[1673386831282,3.03696784,1343.0,1342.8,22.40673]
[1673386832342,0.03696784,1343.0,1342.8,22.40673]
[1673386834247,0.03696784,1343.0,1342.8,14.95971]
[1673386840629,6.91095789,1343.1,1342.8,14.95971]
[1673386840848,13.98379868,1343.1,1342.8,14.95971]
[1673386841230,14.76182772,1343.1,1342.8,14.95971]
[1673386843170,11.9710523,1343.1,1342.8,14.95971]
[1673386843387,2.21648247,1343.0,1342.8,14.95971]
[1673386844697,14.81182772,1343.1,1342.8,22.40683]
[1673386844912,2.21648247,1343.0,1342.8,25.17885794]
[1673386846019,12.59534525,1343.1,1342.8,25.17596142]
[1673386846020,14.81182772,1343.1,1342.8,25.17596142]
[1673386846193,12.87412772,1343.1,1342.8,25.17596142]
[1673386847127,10.0833523,1343.1,1342.8,25.17596142]
[1673386847331,12.87412772,1343.1,1342.8,25.17596142]
[1673386847538,10.0833523,1343.1,1342.8,26.29184954]
[1673386848004,10.0833523,1343.1,1342.8,25.17596142]
[1673386848412,10.0833523,1343.1,1342.8,26.29184954]
[1673386849032,12.87412772,1343.1,1342.8,25.17596142]
[1673386849269,10.0833523,1343.1,1342.8,25.17596142]
[1673386849977,10.0833523,1343.1,1342.8,26.29184954]
[1673386850189,10.0833523,1343.1,1342.8,25.17596142]
[1673386850637,10.0833523,1343.1,1342.8,26.29184954]
[1673386852797,3.01051151,1343.1,1342.9,4.34789015]
[1673386853090,0.77802904,1343.1,1343.0,14.89202]
[1673386853283,0.77802904,1343.1,1343.0,14.95802]
[1673386855583,9.97395789,1343.2,1343.0,14.95802]
[1673386855944,13.07181163,1343.2,1343.0,14.95802]
[1673386857729,2.21648247,1343.1,1343.0,14.95802]
[1673386859156,2.21648247,1343.1,1343.0,7.51201]
[1673386861023,12.56311163,1343.2,1343.0,7.51201]
[1673386861183,12.51311163,1343.2,1343.0,7.51201]
[1673386861833,12.51311163,1343.2,1343.0,14.95802]
[1673386863639,3.46779363,1343.1,1343.0,14.95802]
[1673386863849,3.46779363,1343.1,1343.0,7.51201]
[1673386865272,2.21648247,1343.1,1343.0,7.51201]
[1673386865953,2.16648247,1343.1,1343.0,7.51201]
[1673386866324,4.16648247,1343.1,1343.0,7.51201]
[1673386866966,4.16648247,1343.1,1343.0,0.066]
[1673386867179,4.16648247,1343.1,1342.9,22.40471]
[1673386867540,2.16648247,1343.1,1342.9,22.40471]
[1673386868105,3.66648247,1343.1,1342.9,22.40471]
[1673386868459,2.16648247,1343.1,1342.9,22.40471]
[1673386869587,2.16648247,1343.1,1342.9,0.066]
[1673386869849,5.70958368,1343.1,1342.8,0.066]
[1673386870024,5.70958368,1343.1,1342.7,45.64486852]
[1673386870025,13.17107368,1343.1,1342.7,45.64486852]
[1673386870376,7.05258368,1343.1,1342.8,9.29503431]
[1673386870694,7.05258368,1343.1,1342.8,7.51301]
[1673386871117,4.88610121,1343.1,1342.8,7.51301]
[1673386871421,4.87010121,1343.1,1342.8,7.51301]
[1673386871599,4.11777542,1343.1,1342.8,17.73215515]
[1673386871836,4.11777542,1343.1,1342.8,7.51301]
[1673386873807,6.34950488,1343.1,1342.8,7.51301]
[1673386874017,6.36550488,1343.1,1342.8,7.51301]
[1673386874842,6.36550488,1343.1,1342.8,10.28505452]
[1673386875053,6.36550488,1343.1,1342.8,10.28506452]
[1673386875309,2.23172946,1343.0,1342.8,7.51302]
[1673386876134,6.41550488,1343.1,1342.8,7.51302]
[1673386876480,16.07434457,1343.1,1342.8,0.066]
[1673386876692,4.73172946,1343.0,1342.8,7.44711]
[1673386876916,2.23172946,1343.0,1342.8,7.51311]
[1673386877656,2.23172946,1343.0,1342.8,10.28516128]
[1673386878245,2.23172946,1343.0,1342.8,7.51311]
[1673386879619,2.23172946,1343.0,1342.8,0.066]
[1673386879965,2.23172946,1343.0,1342.7,19.4148]
[1673386879966,6.63494934,1343.0,1342.7,19.4148]
[1673386880145,9.15094934,1343.0,1342.7,22.18706702]
[1673386880337,14.09696934,1343.0,1342.7,22.18706702]
[1673386880752,6.65094934,1343.0,1342.7,29.63463702]
[1673386881599,6.65094934,1343.0,1342.7,26.86237]
[1673386881813,6.65094934,1343.0,1342.7,29.63463516]
[1673386881814,3.86017392,1343.0,1342.7,29.63463516]
[1673386882133,3.84417392,1343.0,1342.7,29.63463516]
[1673386883150,3.84417392,1343.0,1342.7,34.31005]
[1673386883297,3.84417392,1343.0,1342.7,37.08231516]
[1673386883523,5.50317392,1343.0,1342.7,29.63463516]
[1673386883718,5.50317392,1343.0,1342.7,26.86237]
[1673386883719,5.51917392,1343.0,1342.7,26.86237]
[1673386883921,5.51917392,1343.0,1342.7,29.63463516]
[1673386884704,5.51917392,1343.0,1342.7,26.86237]
[1673386885230,5.51917392,1343.0,1342.7,29.63463516]
[1673386886123,5.51917392,1343.0,1342.7,38.19820328]
[1673386886788,5.51917392,1343.0,1342.7,37.08231516]
[1673386887514,5.51917392,1343.0,1342.7,42.87361812]
[1673386887722,3.90672946,1343.0,1342.7,27.97825812]
[1673386887968,3.89072946,1343.0,1342.7,38.19805651]
[1673386888157,3.89072946,1343.0,1342.7,45.64573651]
[1673386888516,3.89072946,1343.0,1342.7,34.31005]
[1673386888808,3.89072946,1343.0,1342.7,44.52985395]
[1673386889021,3.89072946,1343.0,1342.7,34.31005]
[1673386889181,3.89072946,1343.0,1342.7,37.08217332]
[1673386889392,3.89072946,1343.0,1342.7,44.52640678]
[1673386889617,3.89072946,1343.0,1342.7,34.30660346]
[1673386889845,11.83782946,1343.1,1342.8,1.84803444]
[1673386890068,11.78782946,1343.1,1342.9,2.5]
[1673386890281,11.78782946,1343.1,1342.9,17.39241]
[1673386890446,11.78782946,1343.1,1342.9,17.45841]
[1673386890652,3.91772946,1343.1,1342.9,17.45841]
[1673386890902,18.51077542,1343.2,1342.9,17.45841]
[1673386890903,5.08850488,1343.2,1342.9,27.67270023]
[1673386891120,5.08850488,1343.2,1342.9,31.4809107]
[1673386891121,5.03850488,1343.2,1342.9,31.4809107]
[1673386891433,0.016,1343.2,1343.0,1.84773026]
[1673386891601,5.76394236,1343.3,1343.0,1.84773026]
[1673386891805,5.20534236,1343.3,1343.0,4.61985256]
[1673386892066,9.85892694,1343.3,1343.0,4.61985256]
[1673386892277,5.20534236,1343.3,1343.0,11.2304044]
[1673386892465,5.20534236,1343.3,1343.0,26.1884244]
[1673386892677,2.41456694,1343.3,1343.0,26.1884244]
[1673386892890,2.39856694,1343.3,1343.0,26.1884244]
[1673386893068,2.39856694,1343.3,1343.0,18.7424144]
[1673386893278,2.39856694,1343.3,1343.0,11.2964044]
[1673386893590,5.18934236,1343.3,1343.0,18.7424144]
[1673386893805,2.41456694,1343.3,1343.0,11.2964044]
[1673386894013,2.39856694,1343.3,1343.0,11.2964044]
[1673386894444,2.39856694,1343.3,1343.0,18.7424144]
[1673386894647,2.39856694,1343.3,1343.0,11.2964044]
[1673386895433,2.39856694,1343.3,1343.1,1.12964044]
[1673386896073,0.16683748,1343.3,1343.1,1.12964044]
[1673386896583,2.39856694,1343.3,1343.1,1.12964044]
[1673386896802,0.16683748,1343.3,1343.1,1.12964044]
[1673386898734,0.16683748,1343.3,1343.1,3.62964044]
[1673386899039,0.16683748,1343.3,1343.1,1.12964044]
[1673386901004,0.16683748,1343.3,1343.1,11.07496044]
[1673386901356,0.16683748,1343.3,1343.1,26.03188044]
[1673386905239,0.16683748,1343.3,1343.1,18.58642044]
[1673386906145,0.16683748,1343.3,1343.2,1.85864204]
[1673386906355,0.16683748,1343.3,1343.2,7.4449]
[1673386906580,0.16683748,1343.3,1343.2,7.5109]
[1673386907118,0.16683748,1343.3,1343.2,14.9558]
[1673386908761,0.16683748,1343.3,1343.2,22.4007]
[1673386908964,0.16683748,1343.3,1343.2,14.9558]
[1673386909212,0.16683748,1343.3,1343.2,25.85601704]
[1673386910764,0.16683748,1343.3,1343.2,18.40864221]
[1673386911198,0.16683748,1343.3,1343.2,25.85354221]
[1673386911404,0.16683748,1343.3,1343.2,18.40864221]
[1673386911748,7.16e-06,1343.5,1343.2,25.85354221]
[1673386912751,7.16e-06,1343.5,1343.4,22.33137]
[1673386912961,7.16e-06,1343.5,1343.4,14.95358]
[1673386913185,7.16e-06,1343.5,1343.4,7.50979]
[1673386913748,7.16e-06,1343.5,1343.4,14.95358]
[1673386913940,7.16e-06,1343.5,1343.4,22.39737]
[1673386914782,7.16e-06,1343.5,1343.4,7.50979]
[1673386914989,7.16e-06,1343.5,1343.4,0.066]
[1673386915216,7.16e-06,1343.5,1343.3,28.82997422]
[1673386915435,7.16e-06,1343.5,1343.3,36.27399422]
[1673386917522,7.16e-06,1343.5,1343.4,3.62739942]
[1673386917851,7.16e-06,1343.5,1343.3,36.27399422]
[1673386918372,7.16e-06,1343.5,1343.3,13.94195422]
[1673386918594,7.16e-06,1343.5,1343.3,11.3566]
[1673386920656,2.5,1343.4,1343.3,0.066]
[1673386921015,7.44379,1343.4,1343.1,3.0]
[1673386921320,7.45979,1343.4,1343.1,3.0]
[1673386921506,14.90358,1343.4,1343.1,6.64086]
[1673386921724,0.016,1343.4,1343.1,6.70686]
[1673386921926,9.69116662,1343.5,1343.1,14.15219]
[1673386922145,9.69116662,1343.5,1343.1,21.59765]
[1673386923102,17.13468662,1343.5,1343.1,21.59765]
[1673386923286,23.65134503,1343.5,1343.1,21.59765]
[1673386923505,28.30408961,1343.5,1343.1,14.52896]
[1673386924033,31.09486503,1343.5,1343.1,14.52896]
[1673386924465,28.30408961,1343.5,1343.1,14.52896]
[1673386924629,31.09486503,1343.5,1343.1,14.52896]
[1673386924839,2.5,1343.4,1343.1,7.8881]
[1673386925057,22.33305,1343.3,1343.1,7.8881]
[1673386925271,22.34905,1343.3,1343.1,7.8881]
[1673386925817,22.34905,1343.3,1343.1,0.066]
[1673386926031,22.34905,1343.3,1343.0,11.0716]
[1673386926221,17.13642946,1343.3,1343.0,11.0716]
[1673386926434,9.69207946,1343.3,1343.0,11.0716]
[1673386927053,2.24772946,1343.3,1343.0,11.0716]
[1673386927270,2.24772946,1343.3,1343.0,18.51755]
[1673386927271,2.23172946,1343.3,1343.0,18.51755]
[1673386928227,2.23172946,1343.3,1343.0,25.96356]
[1673386928684,2.23172946,1343.3,1343.0,30.432714]
[1673386929077,2.23172946,1343.3,1343.0,22.986704]
[1673386929915,2.23172946,1343.3,1343.0,30.432714]
[1673386930687,2.23172946,1343.3,1343.0,33.2042727]
[1673386931731,2.23172946,1343.3,1343.0,30.432714]
[1673386931944,2.23172946,1343.3,1343.0,33.20427564]
[1673386933850,2.23172946,1343.3,1343.0,33.20073278]
[1673386935121,2.23172946,1343.3,1343.0,37.00968968]
[1673386935269,14.91420488,1343.4,1343.0,37.00968968]
[1673386935641,2.23172946,1343.3,1343.0,44.45569968]
[1673386935883,2.23172946,1343.3,1343.0,41.68413804]
[1673386936396,13.25820488,1343.4,1343.1,6.01602525]
[1673386936592,10.41742946,1343.4,1343.2,17.38929]
[1673386936767,10.41742946,1343.4,1343.2,24.90019]
[1673386937190,2.24772946,1343.4,1343.2,24.90019]
[1673386937401,2.23172946,1343.4,1343.2,22.40019]
[1673386937867,2.29773662,1343.5,1343.2,28.64178741]
[1673386938078,2.23173662,1343.5,1343.2,31.41289006]